fUSD/lending_fUSD_20260626
["ID","MTS","AMOUNT","RATE_DAILY","PERIOD"]
[426488028,1782457846000,-500.0,0.00014898,2]
[426488029,1782457846000,-500.0,0.00014898,2]
[426488027,1782457846000,-500.0,0.00014898,2]
[426488032,1782457846000,-2750.33424467,0.00015,2]
[426488025,1782457846000,-500.0,0.00014898,2]
[426488020,1782457846000,-500.0,0.00014898,2]
[426488021,1782457846000,-500.0,0.00014898,2]
[426488024,1782457846000,-500.0,0.00014898,2]
[426488022,1782457846000,-500.0,0.00014898,2]
[426488018,1782457846000,-500.0,0.00014898,2]
[426488026,1782457846000,-500.0,0.00014898,2]
[426488060,1782458161000,50000.0,0.00037236,120]
[426488069,1782458177000,-151.0,0.00012248,2]
[426488068,1782458177000,-151.0,0.00012248,2]
[426488066,1782458177000,-151.0,0.00012248,2]
[426488067,1782458177000,-151.0,0.00012248,2]
[426488064,1782458177000,-150.0,0.00012248,2]
[426488063,1782458177000,-151.0,0.00012248,2]
[426488071,1782458177000,-151.0,0.00012248,2]
[426488062,1782458177000,-150.0,0.00012248,2]
[426488061,1782458177000,-311.54,0.00012248,2]
[426488065,1782458177000,-150.0,0.00012248,2]
[426488070,1782458177000,-151.0,0.00012248,2]
[426488081,1782458177000,-461.64,0.00012875,2]
[426488074,1782458177000,-151.0,0.00012248,2]
[426488083,1782458177000,-311.54,0.00012893,2]
[426488082,1782458177000,-150.99,0.00012893,2]
[426488080,1782458177000,-166.66,0.00012847,2]
[426488079,1782458177000,-151.0,0.00012248,2]
[426488072,1782458177000,-151.0,0.00012248,2]
[426488078,1782458177000,-151.0,0.00012248,2]
[426488076,1782458177000,-153.0,0.00012248,2]
[426488075,1782458177000,-151.0,0.00012248,2]
[426488073,1782458177000,-151.0,0.00012248,2]
[426488077,1782458177000,-150.0,0.00012248,2]
[426488085,1782458178000,-152.0,0.00012893,2]
[426488084,1782458178000,-151.0,0.00012893,2]
[426488086,1782458178000,-152.0,0.00012893,2]
[426488089,1782458178000,-151.0,0.00012896,2]
[426488087,1782458178000,-153.0,0.00012893,2]
[426488090,1782458178000,-150.0,0.00012905,2]
[426488091,1782458178000,-216.48047229,0.00012908,2]
[426488092,1782458178000,-633.29,0.00012921,2]
[426488093,1782458178000,-151.0,0.00012941,2]
[426488088,1782458178000,-152.0,0.00012894,2]
[426488094,1782458244000,50000.0,0.00037236,120]
[426488112,1782459031000,-153.0,0.00011716,2]
[426488126,1782459031000,-555.78713837,0.00011873,2]
[426488115,1782459031000,-150.0,0.00011716,2]
[426488116,1782459031000,-151.0,0.00011716,2]
[426488117,1782459031000,-151.0,0.00011716,2]
[426488110,1782459031000,-166.66,0.00011716,2]
[426488107,1782459031000,-151.0,0.00011708,2]
[426488108,1782459031000,-150.0,0.00011708,2]
[426488104,1782459031000,-1295.10717985,0.000117,2]
[426488105,1782459031000,-151.0,0.000117,2]
[426488111,1782459031000,-151.0,0.00011716,2]
[426488106,1782459031000,-151.0,0.00011708,2]
[426488103,1782459031000,-8704.89282015,0.000117,2]
[426488109,1782459031000,-926.80079645,0.00011708,2]
[426488113,1782459031000,-151.0,0.00011716,2]
[426488118,1782459031000,-168.445108,0.00011716,2]
[426488114,1782459031000,-153.0,0.00011716,2]
[426488120,1782459031000,-150.0,0.00011717,2]
[426488127,1782459031000,-771.78091839,0.00011873,2]
[426488123,1782459031000,-151.0,0.00011778,2]
[426488139,1782459031000,-150.0,0.0001256,2]
[426488119,1782459031000,-151.0,0.00011716,2]
[426488136,1782459031000,-150.0,0.00012558,2]
[426488138,1782459031000,-151.0,0.0001256,2]
[426488130,1782459031000,-166.66,0.00011962,2]
[426488129,1782459031000,-150.0,0.00011953,2]
[426488133,1782459031000,-166.66,0.00012209,2]
[426488140,1782459031000,-33.82332199,0.00012565,2]
[426488135,1782459031000,-166.66,0.00012456,2]
[426488137,1782459031000,-151.0,0.00012558,2]
[426488132,1782459031000,-150.0,0.0001207,2]
[426488131,1782459031000,-685.14415335,0.00011966,2]
[426488134,1782459031000,-311.55,0.00012302,2]
[426488122,1782459031000,-152.0,0.00011731,2]
[426488124,1782459031000,-150.0,0.00011836,2]
[426488125,1782459031000,-890.62,0.00011843,2]
[426488128,1782459031000,-200.0,0.00011913,2]
[426488121,1782459031000,-150.0,0.00011719,2]
[426488149,1782459032000,-150.0,0.00012673,2]
[426488150,1782459032000,-153.0,0.00012673,2]
[426488153,1782459032000,-151.0,0.00012673,2]
[426488155,1782459032000,-150.0,0.00012673,2]
[426488169,1782459032000,-150.0,0.00012887,2]
[426488152,1782459032000,-152.0,0.00012673,2]
[426488151,1782459032000,-151.0,0.00012673,2]
[426488157,1782459032000,-150.3383746,0.00012673,2]
[426488165,1782459032000,-166.66,0.00012702,2]
[426488144,1782459032000,-152.0,0.00012673,2]
[426488161,1782459032000,-6678.34,0.00012673,2]
[426488147,1782459032000,-150.0,0.00012673,2]
[426488159,1782459032000,-500.0,0.00012673,2]
[426488148,1782459032000,-150.0,0.00012673,2]
[426488146,1782459032000,-151.0,0.00012673,2]
[426488145,1782459032000,-152.0,0.00012673,2]
[426488141,1782459032000,-117.17667801,0.00012565,2]
[426488143,1782459032000,-151.0,0.00012587,2]
[426488142,1782459032000,-203.92724228,0.00012573,2]
[426488171,1782459032000,-250.0,0.00012887,2]
[426488163,1782459032000,-216.48047229,0.00012679,2]
[426488173,1782459032000,-166.66,0.00012949,2]
[426488184,1782459032000,-151.0,0.00013085,2]
[426488177,1782459032000,-151.0,0.00012957,2]
[426488167,1782459032000,-250.0,0.00012879,2]
[426488199,1782459032000,-151.0,0.00013085,2]
[426488198,1782459032000,-153.0,0.00013085,2]
[426488196,1782459032000,-152.0,0.00013085,2]
[426488195,1782459032000,-153.0,0.00013085,2]
[426488193,1782459032000,-151.0,0.00013085,2]
[426488192,1782459032000,-151.0,0.00013085,2]
[426488190,1782459032000,-151.0,0.00013085,2]
[426488189,1782459032000,-151.0,0.00013085,2]
[426488194,1782459032000,-151.0,0.00013085,2]
[426488186,1782459032000,-152.0,0.00013085,2]
[426488188,1782459032000,-152.0,0.00013085,2]
[426488197,1782459032000,-152.0,0.00013085,2]
[426488175,1782459032000,-166.74,0.00012955,2]
[426488180,1782459032000,-152.0,0.00012963,2]
[426488185,1782459032000,-150.0,0.00013085,2]
[426488182,1782459032000,-151.0,0.00013085,2]
[426488181,1782459032000,-153.0,0.00012986,2]
[426488187,1782459032000,-152.0,0.00013085,2]
[426488191,1782459032000,-151.0,0.00013085,2]
[426488183,1782459032000,-153.0,0.00013085,2]
[426488215,1782459033000,-152.0,0.00013599,2]
[426488212,1782459033000,-152.0,0.00013599,2]
[426488209,1782459033000,-10372.8375,0.00013499,2]
[426488211,1782459033000,-152.0,0.00013599,2]
[426488210,1782459033000,-461.64,0.00013518,2]
[426488208,1782459033000,-290.3,0.00013484,2]
[426488206,1782459033000,-155.85215518,0.00013242,2]
[426488207,1782459033000,-150.0,0.00013347,2]
[426488205,1782459033000,-151.0,0.00013242,2]
[426488213,1782459033000,-152.0,0.00013599,2]
[426488218,1782459033000,-402.49659024,0.00013625,2]
[426488214,1782459033000,-152.0,0.00013599,2]
[426488204,1782459033000,-461.64,0.00013197,2]
[426488201,1782459033000,-152.0,0.00013085,2]
[426488202,1782459033000,-300.0,0.00013085,2]
[426488200,1782459033000,-151.0,0.00013085,2]
[426488203,1782459033000,-160.0,0.000131,2]
[426488216,1782459033000,-152.0,0.00013599,2]
[426488219,1782459033000,-6867.2763,0.00013626,2]
[426488224,1782459033000,-351.06947306,0.00013659,2]
[426488233,1782459033000,-500.0,0.00013659,2]
[426488236,1782459033000,-470.7898,0.0001366,2]
[426488234,1782459033000,-1813.6614705,0.0001366,2]
[426488232,1782459033000,-500.0,0.00013659,2]
[426488231,1782459033000,-500.0,0.00013659,2]
[426488217,1782459033000,-193.90005556,0.00013599,2]
[426488228,1782459033000,-500.0,0.00013659,2]
[426488225,1782459033000,-341.26214205,0.00013659,2]
[426488230,1782459033000,-500.0,0.00013659,2]
[426488227,1782459033000,-233.88322029,0.00013659,2]
[426488229,1782459033000,-500.0,0.00013659,2]
[426488222,1782459033000,-150.0,0.00013652,2]
[426488223,1782459033000,-500.0,0.00013659,2]
[426488221,1782459033000,-1827.6559,0.00013627,2]
[426488220,1782459033000,-5878.7923,0.00013627,2]
[426488235,1782459033000,-27857.26973058,0.0001366,2]
[426488226,1782459033000,-500.0,0.00013659,2]
[426488245,1782459037000,-250.0,0.00013659,2]
[426488244,1782459037000,-500.0,0.00013659,2]
[426488243,1782459037000,-160.0,0.0001268,2]
[426488248,1782459037000,-230.82239598,0.00013659,2]
[426488246,1782459037000,-500.0,0.00013659,2]
[426488250,1782459037000,-500.0,0.00013659,2]
[426488249,1782459037000,-269.17760402,0.00013659,2]
[426488251,1782459037000,-495.76486527,0.00013659,2]
[426488247,1782459037000,-500.0,0.00013659,2]
[426488262,1782459038000,-618.73257491,0.0001366,2]
[426488260,1782459038000,-4237.55,0.0001366,2]
[426488254,1782459038000,-16597.81881837,0.0001366,2]
[426488255,1782459038000,-381.27822225,0.0001366,2]
[426488253,1782459038000,-321.7648654,0.0001366,2]
[426488252,1782459038000,-4.23513473,0.00013659,2]
[426488270,1782459042000,-11031.93626155,0.0001366,2]
[426488269,1782459042000,-153.0,0.0001305,2]
[426488271,1782459043000,-223.57527234,0.0001366,2]
[426488273,1782459043000,-572.67874104,0.0001366,2]
[426488272,1782459043000,-648.27484033,0.0001366,2]
[426488285,1782459046000,-500.0,0.00013726,2]
[426488302,1782459046000,-404.35175126,0.00013726,2]
[426488303,1782459046000,-425846.79,0.00013727,2]
[426488304,1782459046000,-228.86111262,0.0001374,2]
[426488297,1782459046000,-284.27715834,0.00013726,2]
[426488293,1782459046000,-583.75709694,0.00013726,2]
[426488288,1782459046000,-500.0,0.00013726,2]
[426488289,1782459046000,-500.0,0.00013726,2]
[426488286,1782459046000,-500.0,0.00013726,2]
[426488281,1782459046000,-28152.32783303,0.0001366,2]
[426488290,1782459046000,-500.0,0.00013726,2]
[426488295,1782459046000,-500.0,0.00013726,2]
[426488291,1782459046000,-500.0,0.00013726,2]
[426488292,1782459046000,-500.0,0.00013726,2]
[426488284,1782459046000,-337.64,0.00013726,2]
[426488282,1782459046000,-150.0,0.00013663,2]
[426488306,1782459046000,-938.2792234,0.00013983,2]
[426488283,1782459046000,-500.0,0.00013726,2]
[426488294,1782459046000,-303.77271601,0.00013726,2]
[426488307,1782459046000,-461.64,0.00014162,2]
[426488287,1782459046000,-500.0,0.00013726,2]
[426488305,1782459046000,-461.64,0.0001384,2]
[426488298,1782459046000,-500.0,0.00013726,2]
[426488321,1782459046000,-50471.07394947,0.00015,2]
[426488322,1782459046000,-5942.78309321,0.00015,2]
[426488317,1782459046000,-451.12255491,0.0001499,2]
[426488314,1782459046000,-350.01,0.00014948,2]
[426488316,1782459046000,-228.86111257,0.0001498,2]
[426488320,1782459046000,-728.0,0.00015,5]
[426488315,1782459046000,-16507.0,0.00014959,2]
[426488313,1782459046000,-3168.7725786,0.00014903,2]
[426488319,1782459046000,-911.0,0.00015,5]
[426488318,1782459046000,-451.12255491,0.0001499,2]
[426488310,1782459046000,-200.0,0.0001488,2]
[426488296,1782459046000,-500.0,0.00013726,2]
[426488311,1782459046000,-150.34394962,0.000149,2]
[426488301,1782459046000,-374.71256555,0.00013726,2]
[426488299,1782459046000,-500.0,0.00013726,2]
[426488300,1782459046000,-500.0,0.00013726,2]
[426488323,1782459046000,-3905.31231049,0.00015,2]
[426488308,1782459046000,-469.67,0.00014443,2]
[426488312,1782459046000,-223.93963107,0.000149,2]
[426488309,1782459046000,-402.49659018,0.00014878,2]
[426488388,1782460231000,-683.41862756,0.0001267,2]
[426488404,1782460232000,-160.0,0.00012891,2]
[426488406,1782460232000,-200.0,0.00012986,2]
[426488408,1782460232000,-151.0,0.00012986,2]
[426488411,1782460232000,-151.0,0.00012989,2]
[426488416,1782460232000,-151.0,0.00013053,2]
[426488412,1782460232000,-150.0,0.00013001,2]
[426488405,1782460232000,-150.0,0.00012922,2]
[426488418,1782460232000,-151.0,0.00013053,2]
[426488415,1782460232000,-151.0,0.00013053,2]
[426488414,1782460232000,-166.66,0.00013053,2]
[426488420,1782460232000,-153.0,0.00013053,2]
[426488417,1782460232000,-151.0,0.00013053,2]
[426488413,1782460232000,-150.0,0.00013049,2]
[426488396,1782460232000,-391.97071829,0.0001277,2]
[426488402,1782460232000,-201.42,0.00012854,2]
[426488407,1782460232000,-151.0,0.00012986,2]
[426488400,1782460232000,-150.0,0.00012841,2]
[426488401,1782460232000,-3117.79,0.00012853,2]
[426488403,1782460232000,-216.48047229,0.00012857,2]
[426488410,1782460232000,-151.0,0.00012987,2]
[426488399,1782460232000,-501.98,0.00012828,2]
[426488398,1782460232000,-3218.77,0.00012819,2]
[426488395,1782460232000,-3814.50264512,0.0001277,2]
[426488397,1782460232000,-150.0,0.00012796,2]
[426488393,1782460232000,-406.97,0.00012728,2]
[426488394,1782460232000,-7132.25663659,0.0001277,2]
[426488421,1782460232000,-150.0,0.00013054,2]
[426488409,1782460232000,-152.0,0.00012986,2]
[426488419,1782460232000,-151.0,0.00013053,2]
[426488434,1782460232000,-151.0,0.00013389,2]
[426488429,1782460232000,-5545.55,0.00013288,2]
[426488422,1782460232000,-151.0,0.00013057,2]
[426488447,1782460232000,-150.0,0.00013389,2]
[426488448,1782460232000,-150.0,0.00013389,2]
[426488449,1782460232000,-151.0,0.00013389,2]
[426488451,1782460232000,-151.0,0.00013389,2]
[426488450,1782460232000,-150.0,0.00013389,2]
[426488445,1782460232000,-151.0,0.00013389,2]
[426488446,1782460232000,-152.0,0.00013389,2]
[426488444,1782460232000,-153.0,0.00013389,2]
[426488440,1782460232000,-150.0,0.00013389,2]
[426488438,1782460232000,-150.0,0.00013389,2]
[426488437,1782460232000,-150.0,0.00013389,2]
[426488432,1782460232000,-150.0,0.00013302,2]
[426488436,1782460232000,-153.0,0.00013389,2]
[426488443,1782460232000,-151.0,0.00013389,2]
[426488428,1782460232000,-2040.2419212,0.00013275,2]
[426488427,1782460232000,-1282.1680788,0.00013275,2]
[426488425,1782460232000,-151.0,0.00013148,2]
[426488435,1782460232000,-151.0,0.00013389,2]
[426488431,1782460232000,-500.0,0.00013289,2]
[426488423,1782460232000,-151.0,0.00013067,2]
[426488430,1782460232000,-151.0,0.00013289,2]
[426488426,1782460232000,-150.0,0.00013176,2]
[426488433,1782460232000,-166.66,0.00013328,2]
[426488439,1782460232000,-152.0,0.00013389,2]
[426488442,1782460232000,-150.0,0.00013389,2]
[426488441,1782460232000,-150.0,0.00013389,2]
[426488424,1782460232000,-150.0,0.00013073,2]
[426488459,1782460233000,-160.0,0.00013504,2]
[426488456,1782460233000,-150.06755787,0.00013478,2]
[426488455,1782460233000,-151.0,0.00013389,2]
[426488452,1782460233000,-151.0,0.00013389,2]
[426488454,1782460233000,-152.0,0.00013389,2]
[426488453,1782460233000,-151.0,0.00013389,2]
[426488464,1782460233000,-150.0,0.00013522,2]
[426488461,1782460233000,-150.0,0.00013522,2]
[426488468,1782460233000,-740.01793856,0.00013607,2]
[426488458,1782460233000,-152.0,0.00013489,2]
[426488462,1782460233000,-152.0,0.00013522,2]
[426488457,1782460233000,-151.0,0.0001348,2]
[426488466,1782460233000,-166.66,0.00013603,2]
[426488463,1782460233000,-150.0,0.00013522,2]
[426488460,1782460233000,-151.0,0.00013522,2]
[426488465,1782460233000,-624.0,0.00013523,2]
[426488467,1782460233000,-692.49897644,0.00013607,2]
[426488521,1782460240000,-864.8126299,0.00013912,2]
[426488530,1782460240000,-250.0,0.00014,2]
[426488518,1782460240000,-172.6835401,0.00013912,2]
[426488519,1782460240000,-11996.6753278,0.00013912,2]
[426488514,1782460240000,-1852.42,0.00013839,2]
[426488513,1782460240000,-5108.65,0.00013699,2]
[426488515,1782460240000,-166.66,0.00013878,2]
[426488512,1782460240000,-1889.893085,0.00013607,2]
[426488516,1782460240000,-1839.748,0.00013901,2]
[426488517,1782460240000,-3271.5859907,0.00013912,2]
[426488523,1782460240000,-600.0,0.00013937,2]
[426488525,1782460240000,-300.0,0.00013937,2]
[426488522,1782460240000,-600.0,0.00013937,2]
[426488531,1782460240000,-250.0,0.00014047,2]
[426488520,1782460240000,-15096.2881618,0.00013912,2]
[426488526,1782460240000,-301.8783989,0.00013937,2]
[426488527,1782460240000,-250.0,0.00013937,2]
[426488529,1782460240000,-3322.41,0.00013939,2]
[426488528,1782460240000,-389.02,0.00013937,2]
[426488533,1782460240000,-1359.52150169,0.00014058,2]
[426488534,1782460240000,-250.0,0.00014111,2]
[426488535,1782460240000,-77.8344255,0.00014152,2]
[426488532,1782460240000,-578.37849831,0.00014058,2]
[426488524,1782460240000,-604.21262527,0.00013937,2]
[426488554,1782460243000,-180.74,0.00014153,2]
[426488553,1782460243000,-88.8255745,0.00014152,2]
[426488552,1782460243000,-151.0,0.00012742,2]
[426488556,1782460243000,-910.61863016,0.00014271,2]
[426488557,1782460243000,-1304.6810786,0.00014271,2]
[426488555,1782460243000,-357.11191855,0.00014271,2]
[426488567,1782460246000,-200.0,0.00014879,2]
[426488568,1782460246000,-200.0,0.0001488,2]
[426488574,1782460246000,-350.0,0.00014948,2]
[426488573,1782460246000,-1339.53266301,0.000149,2]
[426488569,1782460246000,-150.34394962,0.000149,2]
[426488576,1782460246000,-500.0,0.00014998,2]
[426488575,1782460246000,-201.00592498,0.0001499,2]
[426488572,1782460246000,-1096.21973699,0.000149,2]
[426488577,1782460246000,-500.0,0.00014998,2]
[426488562,1782460246000,-166.66,0.00014427,2]
[426488564,1782460246000,-8385.19539262,0.00014504,2]
[426488561,1782460246000,-151.0,0.00012742,2]
[426488565,1782460246000,-1614.79460738,0.00014504,2]
[426488571,1782460246000,-155.47146776,0.000149,2]
[426488566,1782460246000,-150.99,0.00014504,2]
[426488570,1782460246000,-183.08889011,0.000149,2]
[426488563,1782460246000,-501.98,0.00014431,2]
[426488586,1782460246000,-500.0,0.00014998,2]
[426488582,1782460246000,-327.43791206,0.00014998,2]
[426488592,1782460246000,-500.0,0.00014998,2]
[426488594,1782460246000,-392.7999265,0.00014998,2]
[426488595,1782460246000,-384.7104735,0.00014998,2]
[426488591,1782460246000,-500.0,0.00014998,2]
[426488589,1782460246000,-500.0,0.00014998,2]
[426488590,1782460246000,-500.0,0.00014998,2]
[426488579,1782460246000,-500.0,0.00014998,2]
[426488593,1782460246000,-107.2000735,0.00014998,2]
[426488578,1782460246000,-296.54903417,0.00014998,2]
[426488588,1782460246000,-270.84435794,0.00014998,2]
[426488585,1782460246000,-500.0,0.00014998,2]
[426488581,1782460246000,-306.97446578,0.00014998,2]
[426488583,1782460246000,-172.56208794,0.00014998,2]
[426488587,1782460246000,-229.15564206,0.00014998,2]
[426488580,1782460246000,-500.0,0.00014998,2]
[426488584,1782460246000,-500.0,0.00014998,2]
[426488615,1782460848000,261.64262755,0.00037233,120]
[426488700,1782461184000,150.0,8.1e-05,2]
[426488701,1782461185000,10000.0,0.00037235,120]
[426488704,1782461369000,542061.0,0.00037235,120]
[426488747,1782461432000,-316.12,0.00013204,2]
[426488746,1782461432000,-166.66,0.00013192,2]
[426488749,1782461432000,-166.66,0.00013453,2]
[426488745,1782461432000,-216.48047229,0.00013191,2]
[426488742,1782461432000,-167.4,0.0001317,2]
[426488744,1782461432000,-160.0,0.0001319,2]
[426488750,1782461432000,-1435.95,0.00013483,2]
[426488748,1782461432000,-343.8817988,0.00013436,2]
[426488762,1782461432000,-1435.95,0.0001382,2]
[426488751,1782461432000,-385.58834098,0.00013526,2]
[426488768,1782461432000,-500.0,0.00013971,2]
[426488764,1782461432000,-150.0,0.00013839,2]
[426488766,1782461432000,-301.18,0.00013839,2]
[426488770,1782461432000,-500.0,0.00013971,2]
[426488754,1782461432000,-250.0,0.00013649,2]
[426488772,1782461432000,-500.0,0.00013971,2]
[426488758,1782461432000,-166.66,0.00013715,2]
[426488756,1782461432000,-1471.799,0.00013699,2]
[426488743,1782461432000,-160.0,0.0001319,2]
[426488760,1782461432000,-501.0,0.00013753,2]
[426488752,1782461432000,-150.0,0.00013538,2]
[426488741,1782461432000,-160.0,0.0001315,2]
[426488728,1782461432000,-151.0,0.00013145,2]
[426488740,1782461432000,-902.0,0.00013145,2]
[426488774,1782461432000,-500.0,0.00013971,2]
[426488719,1782461432000,-166.66,0.00012408,2]
[426488722,1782461432000,-150.0,0.00012539,2]
[426488720,1782461432000,-200.0,0.00012459,2]
[426488723,1782461432000,-166.66,0.0001267,2]
[426488721,1782461432000,-200.8,0.00012459,7]
[426488724,1782461432000,-170.19,0.00012805,2]
[426488725,1782461432000,-166.66,0.00012931,2]
[426488730,1782461432000,-151.0,0.00013145,2]
[426488739,1782461432000,-913.0,0.00013145,2]
[426488735,1782461432000,-151.0,0.00013145,2]
[426488733,1782461432000,-151.0,0.00013145,2]
[426488726,1782461432000,-902.29,0.00013118,2]
[426488736,1782461432000,-150.0,0.00013145,2]
[426488727,1782461432000,-151.0,0.00013145,2]
[426488732,1782461432000,-151.0,0.00013145,2]
[426488729,1782461432000,-151.0,0.00013145,2]
[426488734,1782461432000,-152.0,0.00013145,2]
[426488738,1782461432000,-151.0,0.00013145,2]
[426488737,1782461432000,-152.0,0.00013145,2]
[426488731,1782461432000,-152.0,0.00013145,2]
[426488780,1782461432000,-1312.26469244,0.00014145,2]
[426488789,1782461432000,-513.3388857,0.00014245,2]
[426488778,1782461432000,-250.0,0.00014,2]
[426488806,1782461432000,-513.3388857,0.00014245,2]
[426488810,1782461432000,-513.3388857,0.00014245,2]
[426488807,1782461432000,-513.3388857,0.00014245,2]
[426488812,1782461432000,-513.3388857,0.00014245,2]
[426488809,1782461432000,-513.3388857,0.00014245,2]
[426488811,1782461432000,-513.3388857,0.00014245,2]
[426488808,1782461432000,-513.3388857,0.00014245,2]
[426488817,1782461432000,-513.3388857,0.00014245,2]
[426488819,1782461432000,-513.3388857,0.00014245,2]
[426488821,1782461432000,-513.3388857,0.00014245,2]
[426488818,1782461432000,-513.3388857,0.00014245,2]
[426488820,1782461432000,-513.3388857,0.00014245,2]
[426488822,1782461432000,-513.3388857,0.00014245,2]
[426488823,1782461432000,-513.3388857,0.00014245,2]
[426488824,1782461432000,-513.3388857,0.00014245,2]
[426488827,1782461432000,-513.3388857,0.00014245,2]
[426488825,1782461432000,-513.3388857,0.00014245,2]
[426488826,1782461432000,-513.3388857,0.00014245,2]
[426488776,1782461432000,-498.1091029,0.00013971,2]
[426488830,1782461432000,-513.3388857,0.00014245,2]
[426488829,1782461432000,-513.3388857,0.00014245,2]
[426488816,1782461432000,-513.3388857,0.00014245,2]
[426488814,1782461432000,-513.3388857,0.00014245,2]
[426488828,1782461432000,-513.3388857,0.00014245,2]
[426488813,1782461432000,-513.3388857,0.00014245,2]
[426488815,1782461432000,-513.3388857,0.00014245,2]
[426488788,1782461432000,-1435.95,0.00014157,2]
[426488790,1782461432000,-513.3388857,0.00014245,2]
[426488787,1782461432000,-2276.9899,0.00014146,2]
[426488786,1782461432000,-3178.51148778,0.00014146,2]
[426488791,1782461432000,-513.3388857,0.00014245,2]
[426488792,1782461432000,-513.3388857,0.00014245,2]
[426488802,1782461432000,-513.3388857,0.00014245,2]
[426488795,1782461432000,-513.3388857,0.00014245,2]
[426488793,1782461432000,-513.3388857,0.00014245,2]
[426488784,1782461432000,-498.21090756,0.00014145,2]
[426488794,1782461432000,-513.3388857,0.00014245,2]
[426488803,1782461432000,-513.3388857,0.00014245,2]
[426488804,1782461432000,-513.3388857,0.00014245,2]
[426488799,1782461432000,-513.3388857,0.00014245,2]
[426488801,1782461432000,-513.3388857,0.00014245,2]
[426488805,1782461432000,-513.3388857,0.00014245,2]
[426488798,1782461432000,-513.3388857,0.00014245,2]
[426488797,1782461432000,-513.3388857,0.00014245,2]
[426488796,1782461432000,-513.3388857,0.00014245,2]
[426488800,1782461432000,-513.3388857,0.00014245,2]
[426488857,1782461433000,-783.05931717,0.00014245,2]
[426488862,1782461433000,-783.05931717,0.00014245,2]
[426488859,1782461433000,-783.05931717,0.00014245,2]
[426488855,1782461433000,-783.05931717,0.00014245,2]
[426488853,1782461433000,-783.05931717,0.00014245,2]
[426488864,1782461433000,-783.05931717,0.00014245,2]
[426488858,1782461433000,-783.05931717,0.00014245,2]
[426488854,1782461433000,-783.05931717,0.00014245,2]
[426488861,1782461433000,-783.05931717,0.00014245,2]
[426488865,1782461433000,-783.05931717,0.00014245,2]
[426488860,1782461433000,-783.05931717,0.00014245,2]
[426488863,1782461433000,-783.05931717,0.00014245,2]
[426488867,1782461433000,-390.54758986,0.00014245,2]
[426488868,1782461433000,-371.22812084,0.00014245,2]
[426488869,1782461433000,-179.17159817,0.00014245,2]
[426488870,1782461433000,-500.0,0.00014245,2]
[426488852,1782461433000,-783.05931717,0.00014245,2]
[426488866,1782461433000,-783.05931717,0.00014245,2]
[426488856,1782461433000,-783.05931717,0.00014245,2]
[426488851,1782461433000,-783.05931717,0.00014245,2]
[426488840,1782461433000,-513.3388857,0.00014245,2]
[426488848,1782461433000,-783.05931717,0.00014245,2]
[426488877,1782461433000,-3236.6889486,0.00014246,2]
[426488832,1782461433000,-513.3388857,0.00014245,2]
[426488833,1782461433000,-513.3388857,0.00014245,2]
[426488839,1782461433000,-513.3388857,0.00014245,2]
[426488831,1782461433000,-513.3388857,0.00014245,2]
[426488837,1782461433000,-513.3388857,0.00014245,2]
[426488834,1782461433000,-513.3388857,0.00014245,2]
[426488835,1782461433000,-513.3388857,0.00014245,2]
[426488850,1782461433000,-783.05931717,0.00014245,2]